bitfinex/quotes_ETHUSD_20250319
["timestamp","ask_amount","ask_price","bid_price","bid_amount"]
[1742351153129,8.78538135,1935.2,1935.1,0.09284082]
[1742351153625,8.78491135,1935.3,1935.1,0.09284082]
[1742351153820,3.61776135,1935.3,1935.1,0.09284082]
[1742351154828,8.78496135,1935.3,1935.1,0.09284082]
[1742351156634,8.78496135,1935.3,1935.2,38.0]
[1742351157108,8.78496135,1935.3,1935.2,38.09261235]
[1742351157308,5.1672,1935.3,1935.2,38.09261235]
[1742351157627,8.78496135,1935.3,1935.2,38.09261235]
[1742351158148,3.61776135,1935.3,1935.2,38.09261235]
[1742351160413,8.78438135,1935.5,1935.2,38.27691235]
[1742351160634,3.61776135,1935.4,1935.2,38.27691235]
[1742351160799,8.78438135,1935.5,1935.3,3.0]
[1742351161001,3.61776135,1935.4,1935.3,3.0]
[1742351162401,8.78465135,1935.4,1935.3,3.0]
[1742351164525,3.61776135,1935.4,1935.3,3.0]
[1742351165105,9.58825135,1935.4,1935.3,3.0]
[1742351165309,11.06373849,1935.4,1935.3,3.0]
[1742351168135,5.16751,1935.2,1935.0,3.0]
[1742351168298,3.61776135,1935.1,1935.0,3.0]
[1742351168503,3.61776135,1935.1,1934.9,3.55]
[1742351168704,3.61776135,1935.1,1935.0,38.0]
[1742351169203,8.78545135,1935.1,1935.0,38.0]
[1742351171264,10.93894749,1935.1,1935.0,35.0]
[1742351171421,15.96094749,1935.1,1935.0,35.0]
[1742351172033,5.16935,1934.5,1934.4,3.0]
[1742351172219,5.16935,1934.5,1934.3,0.1843]
[1742351172421,3.61776135,1934.4,1934.3,0.1843]
[1742351172914,8.78732135,1934.4,1934.3,35.0]
[1742351173191,5.16983,1934.3,1934.1,0.1843]
[1742351173315,3.61776135,1934.2,1934.1,3.1843]
[1742351173515,3.61776135,1934.2,1934.1,3.0]
[1742351173719,3.61776135,1934.2,1934.1,38.0]
[1742351173971,8.78785135,1934.2,1934.1,35.0]
[1742351174132,8.78785135,1934.2,1934.1,38.0]
[1742351175076,8.78785135,1934.2,1934.1,35.0]
[1742351175366,10.18361949,1934.2,1934.1,35.0]
[1742351175720,10.18361949,1934.2,1934.1,38.0]
[1742351179373,10.94181949,1934.2,1934.1,35.0]
[1742351182571,5.17063,1934.0,1933.7,3.0]
[1742351182753,3.61776135,1933.9,1933.7,3.0]
[1742351182953,3.61776135,1933.9,1933.8,38.09179313]
[1742351183885,8.78867135,1933.9,1933.8,38.09179313]
[1742351184097,3.61776135,1933.9,1933.8,38.09179313]
[1742351184409,8.78839135,1934.0,1933.8,38.09179313]
[1742351184544,8.78839135,1934.0,1933.8,38.27609313]
[1742351188346,3.61776135,1934.0,1933.8,38.27609313]
[1742351189149,8.78817135,1934.1,1933.8,38.27609313]
[1742351189865,5.92855,1934.2,1933.9,3.0]
[1742351190057,5.16983,1934.3,1933.9,8.17071]
[1742351190261,3.61776135,1934.2,1934.0,0.09133559]
[1742351190461,8.78798135,1934.2,1934.0,0.09133559]
[1742351191380,8.78759135,1934.3,1934.0,0.09133559]
[1742351191677,13.95765135,1934.3,1934.0,0.09133559]
[1742351192056,8.78759135,1934.3,1934.0,0.09133559]
[1742351192288,13.95766135,1934.3,1934.0,0.09133559]
[1742351192763,8.78759135,1934.3,1934.0,0.09133559]
[1742351192964,8.78751135,1934.4,1934.1,0.1843]
[1742351193166,13.95732135,1934.4,1934.1,3.1843]
[1742351193465,8.78746135,1934.4,1934.2,0.09087815]
[1742351193666,8.78746135,1934.4,1934.3,35.0]
[1742351194072,8.78746135,1934.4,1934.3,35.09064946]
[1742351194784,8.78706135,1934.5,1934.3,38.09064946]
[1742351194985,8.78679135,1934.6,1934.3,39.01691508]
[1742351195288,5.16934,1934.5,1934.3,39.01691508]
[1742351195467,8.78710135,1934.5,1934.3,39.01691508]
[1742351195853,8.78710135,1934.5,1934.3,38.09064946]
[1742351196086,5.16934,1934.5,1934.3,38.09064946]
[1742351197191,8.78732135,1934.4,1934.3,38.09064946]
[1742351198880,8.78732135,1934.4,1934.3,35.09064946]
[1742351201465,8.78732135,1934.4,1934.3,0.09064946]
[1742351201665,10.26010749,1934.4,1934.3,0.09064946]
[1742351201895,10.26010749,1934.4,1934.3,35.09064946]
[1742351216700,13.87786884,1934.4,1934.3,35.09064946]
[1742351216900,14.68586884,1934.4,1934.3,0.09064946]
[1742351217104,5.17089,1933.9,1933.8,3.0]
[1742351217495,5.17089,1933.9,1933.8,3.08782568]
[1742351217694,5.17089,1933.9,1933.8,0.08782568]
[1742351219510,6.63146141,1933.9,1933.8,0.08782568]
[1742351219712,6.56682614,1933.9,1933.8,0.08782568]
[1742351219910,5.17116,1933.8,1933.7,3.0]
[1742351220106,8.78892135,1933.8,1933.7,3.08805448]
[1742351220406,9.59692135,1933.8,1933.7,0.08805448]
[1742351220786,10.34334,1933.7,1933.4,3.0]
[1742351220991,5.17182,1933.6,1933.4,3.0]
[1742351221193,5.17182,1933.6,1933.3,9.18222602]
[1742351221194,5.17196,1933.5,1933.3,9.18222602]
[1742351221393,8.78958135,1933.6,1933.3,9.18222602]
[1742351221917,5.17199,1933.5,1933.3,9.18222602]
[1742351222481,13.96138135,1933.6,1933.3,9.18222602]
[1742351223326,5.17208,1933.5,1933.3,9.18222602]
[1742351223830,8.78956135,1933.6,1933.3,9.18222602]
[1742351224230,13.96148135,1933.6,1933.3,9.18222602]
[1742351224531,13.96148135,1933.6,1933.5,3.0]
[1742351224732,13.96148135,1933.6,1933.4,3.0]
[1742351225332,13.96148135,1933.6,1933.5,38.0]
[1742351226514,10.34372,1933.6,1933.5,38.0]
[1742351226696,13.96148135,1933.6,1933.5,38.0]
[1742351228117,13.96148135,1933.6,1933.5,38.08851216]
[1742351228487,15.35762949,1933.6,1933.5,35.08851216]
[1742351229719,5.1718,1933.6,1933.5,35.08851216]
[1742351230322,8.78919135,1933.7,1933.5,35.08851216]
[1742351230622,9.57924135,1933.9,1933.6,3.0]
[1742351230925,5.17108,1933.9,1933.7,0.08805448]
[1742351231092,5.17108,1933.9,1933.7,0.1843]
[1742351231293,5.17108,1933.9,1933.8,0.08782568]
[1742351231504,8.78839135,1934.0,1933.8,0.08782568]
[1742351231720,8.78865135,1933.9,1933.8,0.08782568]
[1742351234002,3.61776135,1933.9,1933.8,0.08782568]
[1742351234407,8.78839135,1934.0,1933.8,0.08782568]
[1742351236035,5.17063,1934.0,1933.8,0.08782568]
[1742351237520,5.17036,1934.1,1933.8,0.08782568]
[1742351237700,8.78812135,1934.1,1933.8,0.63216325]
[1742351238134,3.61776135,1934.0,1933.9,38.0]
[1742351238427,8.78839135,1934.0,1933.9,38.08759689]
[1742351238933,3.61776135,1934.0,1933.9,38.08759689]
[1742351241134,8.78812135,1934.1,1934.0,3.0]
[1742351241309,8.78790135,1934.2,1934.0,0.08736814]
[1742351241514,3.61776135,1934.2,1933.8,8.71538757]
[1742351241708,3.61776135,1934.2,1934.1,35.0]
[1742351241898,3.61776135,1934.2,1934.1,38.0871394]
[1742351242103,13.95771135,1934.3,1934.2,3.0]
[1742351242298,13.95771135,1934.3,1934.2,3.08691069]
[1742351244907,8.78769135,1934.3,1934.2,3.08691069]
[1742351245331,8.78769135,1934.3,1934.2,0.08691069]
[1742351245530,8.78769135,1934.3,1934.0,3.1843]
[1742351245745,3.61776135,1934.2,1934.1,0.0871394]
[1742351245938,8.78769135,1934.3,1934.1,0.0871394]
[1742351246236,8.78769135,1934.3,1934.2,38.0]
[1742351246538,8.78769135,1934.3,1934.2,38.08691069]
[1742351250223,8.78732135,1934.4,1934.2,38.08691069]
[1742351251112,3.61776135,1934.3,1934.2,38.08691069]
[1742351251620,8.78758135,1934.3,1934.2,38.08691069]
[1742351252016,5.16982,1934.3,1934.2,38.08691069]
[1742351252223,8.78758135,1934.3,1934.2,38.08691069]
[1742351252911,8.78738135,1934.4,1934.2,38.08691069]
[1742351253117,13.95647135,1934.5,1934.2,38.08691069]
[1742351253317,8.78706135,1934.5,1934.2,38.08691069]
[1742351253510,5.93126,1934.7,1934.3,8.16981]
[1742351253716,8.78627135,1934.8,1934.5,3.0]
[1742351253941,8.78627135,1934.8,1934.6,0.08599609]
[1742351254212,13.95499135,1934.8,1934.6,0.08599609]
[1742351254432,8.78627135,1934.8,1934.6,0.08599609]
[1742351254629,8.78627135,1934.8,1934.3,13.52376]
[1742351254829,8.78627135,1934.8,1934.7,0.08576749]
[1742351255022,8.78627135,1934.8,1934.3,19.66364]
[1742351255225,8.78627135,1934.8,1934.7,0.08576749]
[1742351255443,8.78627135,1934.8,1934.3,19.66364]
[1742351255444,13.95502135,1934.8,1934.3,14.49395]
[1742351255618,13.95502135,1934.8,1934.7,0.08576749]
[1742351255818,8.78627135,1934.8,1934.4,4.06104425]
[1742351256024,8.78627135,1934.8,1934.7,0.08576749]
[1742351256230,8.78627135,1934.8,1934.4,9.23047425]
[1742351256435,8.78627135,1934.8,1934.7,0.08576749]
[1742351256648,8.78627135,1934.8,1934.4,14.14647425]
[1742351256944,3.61776135,1934.8,1934.5,5.71927]
[1742351257110,5.93074,1934.9,1934.6,3.08599609]
[1742351257111,9.54850135,1934.9,1934.6,3.08599609]
[1742351257310,8.78600135,1934.9,1934.6,3.27029609]
[1742351257515,8.78597135,1935.0,1934.6,8.43928609]
[1742351257710,8.78597135,1935.0,1934.6,3.27029609]
[1742351258017,3.61776135,1934.8,1934.6,0.08599609]
[1742351258317,8.78652135,1934.7,1934.6,0.08599609]
[1742351259218,8.78652135,1934.7,1934.5,3.0]
[1742351259415,9.56963135,1934.8,1934.6,0.08599609]
[1742351259845,14.73837135,1934.8,1934.6,0.08599609]
[1742351260041,8.78652135,1934.7,1934.6,0.08599609]
[1742351260245,8.78652135,1934.7,1934.5,3.0]
[1742351260424,8.78652135,1934.7,1934.6,0.08599609]
[1742351262565,3.61776135,1934.7,1934.6,0.08599609]
[1742351263049,8.78643135,1934.8,1934.6,0.08599609]
[1742351263850,8.78652135,1934.7,1934.6,0.08599609]
[1742351266847,3.61776135,1934.7,1934.6,0.08599609]
[1742351267652,3.61776135,1934.7,1934.5,3.0]
[1742351267823,5.16824,1934.9,1934.6,0.27029609]
[1742351268023,3.61776135,1934.7,1934.6,0.08599609]
[1742351270354,8.78632135,1934.8,1934.6,0.08599609]
[1742351273456,5.16856,1934.8,1934.6,0.08599609]
[1742351274024,5.16856,1934.8,1934.7,35.0]
[1742351274452,5.16856,1934.8,1934.7,35.08576749]
[1742351275574,8.78600135,1934.9,1934.8,3.0]
[1742351275927,8.78600135,1934.9,1934.8,3.08553893]
[1742351279062,8.78600135,1934.9,1934.8,0.08553893]
[1742351279430,8.78600135,1934.9,1934.8,38.08553893]
[1742351283600,10.96839749,1934.9,1934.8,35.08553893]
[1742351286693,10.96839749,1934.9,1934.8,0.08553893]
[1742351287051,5.16929,1934.5,1934.4,3.0]
[1742351287251,8.78705135,1934.5,1934.4,38.0]
[1742351288252,8.78705135,1934.5,1934.4,38.08645334]
[1742351289892,3.61776135,1934.5,1934.4,38.08645334]
[1742351290186,3.61776135,1934.5,1934.4,38.27075334]
[1742351290384,8.78705135,1934.5,1934.4,38.27075334]
[1742351292686,3.61776135,1934.5,1934.4,38.27075334]
[1742351292889,13.95627135,1934.6,1934.4,38.27075334]
[1742351293589,5.16929,1934.5,1934.4,38.27075334]
[1742351294996,8.78700135,1934.6,1934.4,38.27075334]
[1742351295163,2.17381854,1934.5,1934.4,38.27075334]
[1742351298994,7.34310854,1934.5,1934.4,38.27075334]
[1742351299696,7.34310854,1934.5,1934.4,38.08645334]
[1742351302396,5.16917,1934.6,1934.4,38.08645334]
[1742351302571,5.16843,1934.9,1934.5,0.1843]
[1742351302776,2.17381854,1934.7,1934.6,0.08599609]
[1742351303076,2.17381854,1934.7,1934.6,0.4130257]
[1742351305122,2.17381854,1934.8,1934.6,0.4130257]
[1742351305786,2.17381854,1934.8,1934.7,0.1843]
[1742351306120,5.16773,1935.1,1934.8,3.0]
[1742351306418,2.17381854,1934.9,1934.8,3.0]
[1742351306613,5.16758,1935.2,1934.8,9.003784]
[1742351306806,2.17381854,1935.0,1934.8,9.003784]
[1742351307185,8.78817079,1935.2,1934.8,9.003784]
[1742351307385,5.16758,1935.2,1934.8,9.003784]
[1742351307702,8.78817079,1935.2,1934.9,0.1843]
[1742351307909,8.78817079,1935.2,1934.9,0.87558923]
[1742351308096,8.78817079,1935.2,1934.9,1.921393]
[1742351308291,5.16709,1935.4,1934.9,1.921393]
[1742351308292,3.62059079,1935.3,1934.9,1.921393]
[1742351308514,3.62059079,1935.3,1935.0,3.0]
[1742351308715,3.62059079,1935.3,1935.1,0.3]
[1742351309284,3.62059079,1935.3,1935.2,38.0]
[1742351315691,5.16694,1935.4,1935.2,38.0]
[1742351315893,3.62059079,1935.3,1935.2,38.0]
[1742351317335,5.16694,1935.4,1935.2,38.0]
[1742351317532,3.62059079,1935.3,1935.2,38.0]
[1742351318123,3.62059079,1935.3,1935.2,38.08462489]
[1742351319001,3.62059079,1935.3,1935.2,38.9469585]
[1742351319410,5.99777,1935.5,1935.2,38.9469585]
[1742351319630,5.16639,1935.6,1935.2,39.1312585]
[1742351319804,5.16628,1935.7,1935.3,0.55]
[1742351320134,3.62059079,1935.6,1935.3,0.55]
[1742351320304,3.62059079,1935.5,1935.4,0.08416801]
[1742351320900,3.62059079,1935.5,1935.4,35.08416801]
[1742351321102,3.62059079,1935.6,1935.5,3.0]
[1742351321526,3.62059079,1935.6,1935.5,3.08393961]
[1742351321934,8.78694079,1935.6,1935.5,3.08393961]
[1742351323636,11.01135487,1935.6,1935.5,3.08393961]
[1742351323937,11.01135487,1935.6,1935.5,0.08393961]
[1742351324844,11.01135487,1935.6,1935.5,35.0]
[1742351325140,11.01135487,1935.6,1935.5,35.08393961]
[1742351325911,9.61604079,1935.6,1935.5,35.08393961]
[1742351326216,8.78694079,1935.6,1935.5,35.08393961]
[1742351327839,8.78694079,1935.6,1935.5,0.08393961]
[1742351328206,8.78694079,1935.6,1935.5,35.08393961]
[1742351330015,9.61604079,1935.6,1935.5,35.08393961]
[1742351330221,11.09426487,1935.6,1935.5,35.08393961]
[1742351333212,11.09426487,1935.6,1935.5,0.08393961]
[1742351333411,5.16689,1935.4,1935.3,3.0]
[1742351333639,8.78748079,1935.4,1935.3,3.08972487]
[1742351333840,8.78748079,1935.4,1935.3,38.08972487]
[1742351338645,9.57548079,1935.4,1935.3,38.08972487]
[1742351339848,9.57548079,1935.4,1935.3,0.08972487]
[1742351340147,5.16742,1935.2,1935.1,3.0]
[1742351340323,8.78801079,1935.2,1935.1,38.0]
[1742351340532,8.78801079,1935.2,1935.1,38.09023257]
[1742351342141,8.78801079,1935.2,1935.1,35.09023257]
[1742351342345,14.59212666,1935.2,1935.1,35.09023257]
[1742351342720,10.97153587,1935.2,1935.1,35.09023257]
[1742351342921,14.59212666,1935.2,1935.1,35.09023257]
[1742351343521,19.50312666,1935.2,1935.1,35.09023257]
[1742351343955,19.50312666,1935.2,1935.1,0.09023257]
[1742351344137,5.16929,1934.5,1934.4,3.0]
[1742351344338,5.16956,1934.4,1934.3,0.1843]
[1742351344537,8.79015079,1934.4,1934.3,4.23718238]
[1742351344853,5.16956,1934.4,1934.3,38.1843]
[1742351346839,5.93139,1934.8,1934.3,38.1843]
[1742351346840,0.7629,1934.8,1934.3,38.1843]
[1742351347033,5.16901,1934.7,1934.4,0.1843]
[1742351347423,8.78909079,1934.8,1934.4,0.1843]
[1742351347728,5.1685,1934.8,1934.4,8.35374]
[1742351347938,5.1685,1934.8,1934.5,0.835374]
[1742351348118,5.1685,1934.8,1934.6,35.0]
[1742351348522,5.1685,1934.8,1934.7,0.08212344]
[1742351348751,5.1685,1934.8,1934.5,0.835374]
[1742351349156,8.78909079,1934.8,1934.7,35.0]
[1742351349453,8.78909079,1934.8,1934.7,35.08212344]
[1742351351455,8.78909079,1934.8,1934.7,38.08212344]
[1742351351643,8.78909079,1934.8,1934.7,38.26642344]
[1742351355434,8.78909079,1934.8,1934.7,38.08212344]
[1742351356843,5.16796,1935.0,1934.8,3.0]
[1742351357377,5.16806,1935.0,1934.8,3.0]
[1742351357664,5.16806,1935.0,1934.8,3.1843]
[1742351359285,8.78865079,1935.0,1934.8,3.1843]
[1742351359443,5.16742,1935.2,1934.8,3.1843]
[1742351359769,5.16785,1935.1,1934.8,4.019674]
[1742351360465,5.16785,1935.1,1934.9,35.0]
[1742351363172,5.16721,1935.3,1935.1,0.1843]
[1742351363391,5.16721,1935.3,1935.2,0.08098084]
[1742351363773,5.16721,1935.3,1935.2,35.0]
[1742351363974,5.16721,1935.3,1935.2,35.08098084]
[1742351366278,8.78780079,1935.3,1935.2,35.08098084]
[1742351370047,5.16721,1935.3,1935.2,35.08098084]
[1742351375571,11.06138079,1935.3,1935.2,35.08098084]
[1742351375783,15.90778987,1935.3,1935.2,35.08098084]
[1742351376086,12.28719908,1935.3,1935.2,0.08098084]
[1742351376583,12.28719908,1935.3,1935.2,35.08098084]
[1742351377675,15.90778987,1935.3,1935.2,35.08098084]
[1742351379767,19.52838066,1935.3,1935.2,35.08098084]
[1742351380083,19.52838066,1935.3,1935.2,0.08098084]
[1742351380467,5.16902,1934.6,1934.5,3.0]
[1742351380866,5.16902,1934.6,1934.5,3.08258065]
[1742351381090,5.16902,1934.6,1934.5,38.08258065]
[1742351381996,5.16902,1934.6,1934.5,35.08258065]
[1742351381997,8.78961079,1934.6,1934.5,35.08258065]
[1742351382365,8.78961079,1934.6,1934.5,38.08258065]
[1742351382897,9.55291079,1934.6,1934.5,38.08258065]
[1742351383410,5.16822,1934.9,1934.6,3.0]
[1742351383562,5.16822,1934.9,1934.7,0.3]
[1742351383768,5.16822,1934.9,1934.7,0.08208344]
[1742351383963,5.16822,1934.9,1934.8,35.0]
[1742351384180,5.16822,1934.9,1934.8,35.1843]
[1742351384363,5.16822,1934.9,1934.8,35.26615487]
[1742351385395,8.78881079,1934.9,1934.8,35.26615487]
[1742351387789,8.78881079,1934.9,1934.8,35.08185487]
[1742351390580,5.16822,1934.9,1934.8,35.08185487]
[1742351392977,5.16822,1934.9,1934.8,38.08185487]
[1742351396401,5.96632,1934.9,1934.8,38.08185487]
[1742351396576,7.44181008,1934.9,1934.8,35.08185487]
[1742351397080,7.44181008,1934.9,1934.8,0.08185487]
[1742351397493,5.16929,1934.5,1934.4,3.0]
[1742351397676,8.78988079,1934.5,1934.4,3.0]
[1742351398986,8.78988079,1934.5,1934.4,38.0]
[1742351400687,5.16929,1934.5,1934.4,38.0]
[1742351400888,8.78988079,1934.5,1934.4,38.0]
[1742351402508,10.18577987,1934.5,1934.4,38.0]
[1742351405611,10.18577987,1934.5,1934.4,35.0]
[1742351406210,10.98387987,1934.5,1934.4,35.0]
[1742351409216,8.78988079,1934.5,1934.4,35.0]
[1742351409388,5.16929,1934.5,1934.4,38.0]
[1742351409588,8.78988079,1934.5,1934.4,3.0]
[1742351410020,8.78988079,1934.5,1934.4,38.0]
[1742351417412,8.78988079,1934.5,1934.4,38.07123135]
[1742351418711,10.18577987,1934.5,1934.4,38.07123135]
[1742351419115,10.97267987,1934.5,1934.4,38.07123135]
[1742351419545,10.97267987,1934.5,1934.4,35.07123135]
[1742351419745,14.59327066,1934.5,1934.4,35.07123135]
[1742351419914,19.50427066,1934.5,1934.4,35.07123135]
[1742351421712,19.50427066,1934.5,1934.4,3.16e-06]
[1742351421942,5.17089,1933.9,1933.8,3.0]
[1742351422448,8.79130079,1934.0,1933.8,3.25135309]
[1742351422838,8.79130079,1934.0,1933.9,38.0]
[1742351423246,8.79130079,1934.0,1933.9,38.06693272]
[1742351425558,13.96144079,1934.1,1933.9,38.06693272]
[1742351425723,8.79122079,1934.0,1933.9,38.06693272]
[1742351426751,5.17036,1934.1,1933.9,38.06693272]
[1742351426952,3.62059079,1934.0,1933.9,38.06693272]
[1742351429762,8.79083079,1934.2,1934.0,3.1843]
[1742351429947,8.79083079,1934.2,1934.0,0.1843]
[1742351430147,8.79083079,1934.2,1934.1,0.0665629]
[1742351430462,8.79083079,1934.2,1934.1,35.0665629]
[1742351431139,3.62059079,1934.2,1934.1,35.0665629]
[1742351434771,5.16944,1934.5,1934.2,3.0]
[1742351434940,5.16944,1934.5,1934.3,0.1843]
[1742351435250,8.78966079,1934.6,1934.4,0.06616506]
[1742351435453,8.78966079,1934.6,1934.5,35.0]
[1742351436000,8.78966079,1934.6,1934.5,35.06600175]
[1742351437359,10.26385287,1934.6,1934.5,35.06600175]
[1742351437561,11.05935287,1934.6,1934.5,35.06600175]
[1742351437743,14.67994366,1934.6,1934.5,0.06600175]
[1742351437938,5.96532,1934.3,1934.2,3.0]
[1742351438145,9.58591079,1934.3,1934.2,3.06649174]
[1742351438365,11.91462495,1934.3,1934.2,38.06649174]
[1742351441358,11.91462495,1934.3,1934.2,35.06649174]
[1742351441557,11.91462495,1934.3,1934.2,0.06649174]
[1742351441756,5.17062,1934.1,1933.8,1.24596619]
[1742351441957,8.79128079,1934.0,1933.9,0.06705567]
[1742351442455,8.79128079,1934.0,1933.9,38.0]
[1742351442667,8.79128079,1934.0,1933.9,38.06705567]
[1742351443080,3.62059079,1934.0,1933.9,38.06705567]
[1742351444081,8.79122079,1934.0,1933.9,38.06705567]
[1742351444851,8.79100079,1934.1,1933.9,38.06705567]
[1742351445949,9.58672079,1934.0,1933.9,35.06705567]
[1742351447174,9.96642481,1934.0,1933.9,35.06705567]
[1742351449984,6.34583402,1934.0,1933.9,35.06705567]
[1742351450179,9.96642481,1934.0,1933.9,35.06705567]
[1742351450656,14.87842481,1934.0,1933.9,35.06705567]
[1742351450856,17.0229192,1934.0,1933.9,35.06705567]
[1742351452987,17.0229192,1934.0,1933.9,0.06705567]
[1742351453285,17.0229192,1934.0,1933.4,4.77483492]
[1742351453483,3.62059079,1933.7,1933.4,4.77483492]
[1742351453689,8.79214079,1933.7,1933.5,0.06773403]
[1742351453987,8.79214079,1933.7,1933.6,38.0]
[1742351454377,8.79214079,1933.7,1933.6,38.06779192]
[1742351455654,9.61804079,1933.7,1933.6,38.06779192]
[1742351456458,8.79214079,1933.7,1933.6,38.06779192]
[1742351461392,10.18847087,1933.7,1933.6,38.06779192]
[1742351461793,11.01437087,1933.7,1933.6,38.06779192]
[1742351462495,8.79214079,1933.7,1933.6,38.06779192]
[1742351469767,8.79214079,1933.7,1933.6,35.06779192]
[1742351469768,9.55204079,1933.7,1933.6,35.06779192]
[1742351470369,13.17263158,1933.7,1933.6,35.06779192]
[1742351470798,9.55204079,1933.7,1933.6,35.06779192]
[1742351471005,14.64495166,1933.7,1933.6,35.06779192]
[1742351471595,11.02436087,1933.7,1933.6,35.06779192]
[1742351473382,8.79214079,1933.7,1933.6,35.06779192]
[1742351476503,8.79214079,1933.7,1933.6,0.06779192]
[1742351476698,5.17172,1933.6,1933.4,0.1843]
[1742351476878,3.62059079,1933.5,1933.4,0.1843]
[1742351477079,3.62059079,1933.5,1933.4,35.1843]
[1742351477798,8.79255079,1933.5,1933.4,35.1843]
[1742351478206,8.79255079,1933.5,1933.4,35.25068006]
[1742351479493,8.79255079,1933.5,1933.4,35.06638006]
[1742351484809,5.17196,1933.5,1933.4,35.06638006]
[1742351485016,5.17196,1933.5,1933.4,35.25068006]
[1742351485213,8.79255079,1933.5,1933.4,35.25068006]
[1742351486414,8.79255079,1933.5,1933.4,35.06638006]
[1742351487804,5.17196,1933.5,1933.4,35.06638006]
[1742351488118,8.79255079,1933.5,1933.4,35.06638006]
[1742351488308,5.17196,1933.5,1933.4,35.06638006]
[1742351489416,8.79240079,1933.6,1933.5,3.0]
[1742351489716,8.79240079,1933.6,1933.5,0.06622887]
[1742351489888,13.96432079,1933.6,1933.3,0.1843]
[1742351490214,8.79240079,1933.6,1933.5,38.0]
[1742351490619,8.79240079,1933.6,1933.5,38.06622887]
[1742351491715,10.18879287,1933.6,1933.5,38.06622887]
[1742351492017,10.97129287,1933.6,1933.5,38.06622887]
[1742351492717,14.59188366,1933.6,1933.5,35.06622887]
[1742351493286,10.97129287,1933.6,1933.5,35.06622887]
[1742351493717,14.59188366,1933.6,1933.5,35.06622887]
[1742351494411,10.97129287,1933.6,1933.5,35.06622887]
[1742351496061,10.97129287,1933.6,1933.5,0.06622887]
[1742351496393,10.97129287,1933.6,1933.5,35.0]
[1742351496594,10.97129287,1933.6,1933.5,35.06620425]
[1742351499422,10.97129287,1933.6,1933.5,0.06620425]
[1742351499930,5.17278,1933.2,1933.0,0.1843]
[1742351500125,8.79337079,1933.2,1933.0,0.1843]
[1742351500324,5.17303,1933.1,1932.9,0.77653021]
[1742351500908,5.17303,1933.1,1933.0,38.0]
[1742351503933,8.79337079,1933.2,1933.0,38.0]
[1742351504133,5.17278,1933.2,1933.0,38.1843]
[1742351505037,5.17303,1933.1,1933.0,38.1843]
[1742351506403,8.79337079,1933.2,1933.0,38.1843]
[1742351506832,13.96638079,1933.2,1933.0,38.1843]
[1742351507328,5.17303,1933.1,1933.0,38.1843]
[1742351508239,5.17303,1933.1,1933.0,38.25143262]
[1742351508536,8.79362079,1933.1,1933.0,38.06713262]
[1742351509310,5.17278,1933.2,1933.0,38.06713262]
[1742351509510,5.17251,1933.3,1933.1,0.1843]
[1742351509709,5.17251,1933.3,1933.2,0.06680554]
[1742351509922,5.17251,1933.3,1933.1,0.1843]
[1742351510116,5.17224,1933.4,1933.2,0.06695939]
[1742351510322,5.17224,1933.4,1933.1,0.1843]
[1742351510538,5.17224,1933.4,1933.3,0.06679587]
[1742351510735,5.17224,1933.4,1933.1,0.1843]
[1742351510943,5.17224,1933.4,1933.3,0.06679587]
[1742351511244,5.17224,1933.4,1933.1,0.1843]
[1742351511443,5.17224,1933.4,1933.3,0.06679587]
[1742351511615,5.17224,1933.4,1933.2,0.06695939]
[1742351511812,5.17254,1933.3,1933.1,1.19551148]
[1742351512342,5.17254,1933.3,1933.1,0.1843]
[1742351512552,7.31528439,1934.0,1933.2,0.1843]
[1742351512553,5.1719,1933.6,1933.2,0.1843]
[1742351512845,5.1719,1933.6,1933.3,3.0]
[1742351513224,5.1719,1933.6,1933.3,3.48499476]
[1742351513745,5.17143,1933.7,1933.4,0.1843]
[1742351513943,5.17131,1933.8,1933.4,0.1843]
[1742351514137,8.79190079,1933.8,1933.4,0.1843]
[1742351514327,8.79190079,1933.8,1933.4,1.16996636]
[1742351514535,5.17094,1933.9,1933.7,0.1843]
[1742351514833,13.96262079,1933.9,1933.7,0.1843]
[1742351515147,8.79153079,1933.9,1933.7,0.1843]
[1742351515338,5.17094,1933.9,1933.8,38.0]
[1742351515848,8.79153079,1933.9,1933.8,38.0]
[1742351516816,8.79123079,1934.0,1933.9,3.0]
[1742351517155,5.1704,1934.1,1933.7,0.1843]
[1742351517469,5.17022,1934.2,1933.9,35.0]
[1742351517620,8.79081079,1934.2,1933.9,35.0]
[1742351517820,3.62059079,1934.2,1933.9,35.0]
[1742351518234,10.34,1934.3,1934.0,3.0]
[1742351518235,8.79053079,1934.3,1934.0,3.0]
[1742351518433,5.16994,1934.3,1934.0,0.1843]
[1742351518739,3.62059079,1934.2,1934.0,0.1843]
[1742351518918,3.62059079,1934.2,1934.1,35.0]
[1742351519119,8.79019079,1934.4,1934.2,3.0]
[1742351519320,13.95956079,1934.5,1934.2,3.0]
[1742351519545,13.95956079,1934.5,1934.1,3.0]
[1742351519756,3.62059079,1934.4,1934.1,3.835479]
[1742351519920,3.62059079,1934.4,1934.3,38.0]
[1742351520425,8.79006079,1934.5,1934.3,38.0]
[1742351520750,8.79002079,1934.5,1934.3,38.0]
[1742351521145,3.62059079,1934.4,1934.3,38.0]
[1742351521335,5.16943,1934.5,1934.4,0.1843]
[1742351521718,3.62059079,1934.6,1934.4,0.1843]
[1742351521719,5.16905,1934.6,1934.4,0.1843]
[1742351521925,8.78948079,1934.7,1934.4,3.1843]
[1742351522135,3.62059079,1934.6,1934.4,3.1843]
[1742351522338,5.16871,1934.8,1934.4,4.019779]
[1742351522522,3.62059079,1934.7,1934.4,4.019779]
[1742351522923,8.78938079,1934.7,1934.4,4.019779]
[1742351523134,8.78938079,1934.7,1934.5,0.06343871]
[1742351523652,8.85421955,1934.6,1934.5,0.06343871]
[1742351523854,10.99561175,1934.6,1934.5,0.06343871]
[1742351524357,5.16879,1934.7,1934.4,3.0]
[1742351524543,8.78974079,1934.6,1934.5,0.06339568]
[1742351525726,9.59344079,1934.6,1934.5,0.06339568]
[1742351526958,5.16956,1934.4,1934.3,35.0]
[1742351527157,9.55865079,1934.4,1934.3,35.0]
[1742351527360,11.03145287,1934.4,1934.3,35.0]
[1742351527728,10.26295287,1934.4,1934.3,35.0]
[1742351527929,8.79015079,1934.4,1934.3,35.0]
[1742351530960,8.79015079,1934.4,1934.1,3.0]
[1742351531136,8.79015079,1934.4,1934.0,3.55]
[1742351531137,3.62059079,1934.3,1934.0,3.55]